bitfinex/quotes_BTCUSD_20241206
["timestamp","ask_amount","ask_price","bid_price","bid_amount"]
[1733496667140,0.201432,99289.0,99272.0,0.01459465]
[1733496667408,0.10587393,99299.0,99272.0,0.01459465]
[1733496667409,0.00084239,99288.0,99272.0,0.01459465]
[1733496667635,0.00084239,99298.0,99273.0,0.00100723]
[1733496667861,0.00084239,99298.0,99278.0,0.201452]
[1733496667862,0.00084239,99297.0,99278.0,0.201452]
[1733496668086,0.2022562,99310.0,99283.0,0.201443]
[1733496668325,4e-05,99300.0,99284.0,0.01988829]
[1733496668546,0.10503154,99299.0,99284.0,0.01988829]
[1733496668767,0.00084239,99298.0,99284.0,0.01988829]
[1733496669035,0.15,99296.0,99272.0,0.01459465]
[1733496669252,0.00084239,99295.0,99273.0,0.21576347]
[1733496669462,0.15,99290.0,99273.0,0.21576347]
[1733496669720,0.00304,99300.0,99273.0,0.21576347]
[1733496669721,0.201411,99299.0,99279.0,0.201451]
[1733496669922,0.201411,99299.0,99273.0,0.01429947]
[1733496669923,0.15,99296.0,99275.0,0.20146]
[1733496670133,0.00084239,99295.0,99275.0,0.20146]
[1733496670345,0.00084239,99295.0,99273.0,0.01429947]
[1733496670346,0.15,99294.0,99272.0,0.01992053]
[1733496670557,0.10587393,99293.0,99272.0,0.01992053]
[1733496670802,0.001,99290.0,99272.0,0.01992053]
[1733496671240,0.001,99290.0,99280.0,0.20145]
[1733496671452,0.001,99290.0,99281.0,0.020145]
[1733496671659,0.001,99290.0,99274.0,0.201462]
[1733496672089,0.20142,99295.0,99274.0,0.201462]
[1733496672308,0.00084239,99294.0,99274.0,0.201462]
[1733496672516,0.201424,99293.0,99274.0,0.201462]
[1733496672728,0.20142,99295.0,99276.0,0.201458]
[1733496672729,0.00084239,99292.0,99276.0,0.201458]
[1733496673161,0.00084239,99292.0,99276.0,0.402916]
[1733496673375,0.00084239,99292.0,99276.0,0.201458]
[1733496673657,0.00084239,99292.0,99277.0,0.201456]
[1733496673876,0.00084239,99294.0,99277.0,0.201456]
[1733496674102,4e-05,99300.0,99275.0,0.05482535]
[1733496674103,4e-05,99300.0,99280.0,0.17525992]
[1733496674329,4e-05,99300.0,99281.0,0.00100711]
[1733496674554,4e-05,99300.0,99282.0,0.00100711]
[1733496674771,4e-05,99300.0,99296.0,0.201415]
[1733496675028,4e-05,99300.0,99290.0,0.17525992]
[1733496675029,0.00036105,99317.0,99299.0,0.076]
[1733496675243,0.00036105,99317.0,99300.0,0.30434211]
[1733496675458,0.00017302,99310.0,99307.0,0.22153634]
[1733496675680,0.00017302,99310.0,99307.0,0.02014134]
[1733496675937,0.00017302,99310.0,99308.0,0.201393]
[1733496676154,0.00017302,99310.0,99308.0,0.20239988]
[1733496676368,0.00017302,99310.0,99309.0,0.15566994]
[1733496676630,0.00036105,99317.0,99311.0,0.0826]
[1733496676845,0.00036105,99317.0,99309.0,0.15667667]
[1733496676846,0.004031,99336.0,99318.0,0.201373]
[1733496677064,0.004031,99336.0,99328.0,0.201351]
[1733496677278,0.00084239,99347.0,99320.0,0.17525992]
[1733496677279,0.201316,99347.0,99320.0,0.17525992]
[1733496677506,0.00084239,99346.0,99323.0,0.201362]
[1733496678176,0.201334,99338.0,99317.0,0.0826]
[1733496678387,0.040304,99347.0,99323.0,0.201362]
[1733496678388,0.00084239,99337.0,99323.0,0.201362]
[1733496678605,0.00084239,99346.0,99329.0,0.201351]
[1733496678859,0.00084239,99346.0,99329.0,0.22347848]
[1733496679288,0.00084239,99349.0,99329.0,0.22347848]
[1733496679510,0.20215339,99349.0,99329.0,0.22347848]
[1733496679934,0.20215339,99349.0,99329.0,0.205351]
[1733496680223,0.20215339,99349.0,99329.0,0.004]
[1733496680224,0.201323,99343.0,99329.0,0.004]
[1733496680441,0.00084239,99342.0,99329.0,0.007]
[1733496681293,0.20134,99335.0,99329.0,0.007]
[1733496681518,0.00084239,99334.0,99329.0,0.007]
[1733496681734,0.0009036,99330.0,99329.0,0.007]
[1733496682170,0.0009036,99330.0,99329.0,0.003]
[1733496682393,0.0009036,99330.0,99329.0,0.005]
[1733496682620,0.0009036,99330.0,99329.0,0.21876682]
[1733496682872,0.0009036,99330.0,99329.0,0.21276009]
[1733496683125,0.0008654,99390.0,99359.0,0.17525992]
[1733496683351,0.201229,99389.0,99368.0,0.20127]
[1733496683570,0.00084239,99388.0,99369.0,0.020127]
[1733496683792,0.20610139,99388.0,99369.0,0.201269]
[1733496684019,0.20207539,99387.0,99368.0,0.01977051]
[1733496684233,0.00084239,99387.0,99369.0,0.20127]
[1733496684443,0.201235,99386.0,99369.0,0.20127]
[1733496684657,0.0008654,99390.0,99370.0,0.04223165]
[1733496684658,0.201245,99382.0,99370.0,0.04223165]
[1733496684869,0.00103842,99390.0,99370.0,0.04223165]
[1733496685081,0.00084239,99389.0,99370.0,0.04223165]
[1733496685303,0.00103842,99390.0,99371.0,0.10603774]
[1733496685510,0.00103842,99390.0,99372.0,0.201263]
[1733496685725,0.00103842,99390.0,99384.0,0.201238]
[1733496685950,0.002,99388.0,99384.0,0.201238]
[1733496686177,0.002,99388.0,99373.0,0.15948782]
[1733496686178,0.002,99388.0,99380.0,0.201247]
[1733496686387,0.002,99388.0,99380.0,0.201246]
[1733496686663,0.00103842,99390.0,99380.0,0.201246]
[1733496686872,0.00103842,99390.0,99381.0,0.0201246]
[1733496687088,0.00103842,99390.0,99373.0,0.15948782]
[1733496687089,0.00103842,99390.0,99373.0,0.05445628]
[1733496687312,0.20207139,99389.0,99372.0,0.01000054]
[1733496687528,0.00103842,99390.0,99385.0,0.02046906]
[1733496687768,0.00103842,99390.0,99386.0,0.279233]
[1733496688206,0.00103842,99390.0,99386.0,0.480468]
[1733496688423,0.00103842,99390.0,99388.0,0.201231]
[1733496688639,0.00103842,99390.0,99389.0,0.00100598]
[1733496688853,0.00103842,99390.0,99389.0,0.10603752]
[1733496689931,0.00103842,99390.0,99389.0,0.11003752]
[1733496690406,0.00103842,99390.0,99389.0,0.004]
[1733496690631,0.00103842,99390.0,99387.0,0.135244]
[1733496690632,0.00103842,99390.0,99387.0,0.02885731]
[1733496690855,0.00103842,99390.0,99386.0,0.078]
[1733496691081,0.00103842,99390.0,99389.0,0.008]
[1733496691082,0.20226642,99390.0,99389.0,0.008]
[1733496691293,0.20226642,99390.0,99385.0,0.02046906]
[1733496691294,0.201229,99389.0,99385.0,0.02046906]
[1733496691506,0.00103842,99390.0,99378.0,0.20125]
[1733496691726,0.00103842,99390.0,99369.0,0.0755]
[1733496691727,0.00103842,99390.0,99389.0,0.004]
[1733496691960,0.00103842,99390.0,99375.0,0.201256]
[1733496692176,0.201229,99389.0,99375.0,0.201256]
[1733496692401,0.201239,99384.0,99383.0,0.02023159]
[1733496692837,0.30626254,99388.0,99369.0,0.0755]
[1733496692838,0.10503154,99388.0,99369.0,0.0755]
[1733496693055,0.20126,99374.0,99369.0,0.0755]
[1733496693274,0.201254,99377.0,99369.0,0.08305]
[1733496693495,0.10503154,99388.0,99369.0,0.08305]
[1733496693709,0.20126,99374.0,99369.0,0.08305]
[1733496693921,0.20126,99374.0,99373.0,0.01974189]
[1733496694384,0.20126,99374.0,99369.0,0.0755]
[1733496694385,0.173,99385.0,99355.0,0.0769]
[1733496694607,0.20129,99360.0,99355.0,0.0769]
[1733496694818,0.15,99379.0,99355.0,0.0769]
[1733496695034,0.201296,99356.0,99355.0,0.0769]
[1733496695511,0.201296,99356.0,99355.0,0.09739074]
[1733496695732,0.201296,99356.0,99355.0,0.001]
[1733496695966,0.201296,99356.0,99341.0,0.0793]
[1733496695967,0.201316,99346.0,99341.0,0.0793]
[1733496696182,0.201309,99350.0,99341.0,0.0793]
[1733496696408,0.201324,99343.0,99341.0,0.01986267]
[1733496696838,0.20131,99349.0,99341.0,0.01986267]
[1733496697053,0.02317293,99356.0,99341.0,0.01986267]
[1733496697054,0.201298,99355.0,99341.0,0.01986267]
[1733496697264,0.224298,99355.0,99341.0,0.01986267]
[1733496697478,0.201302,99353.0,99341.0,0.01986267]
[1733496697699,0.023,99355.0,99341.0,0.01986267]
[1733496697700,0.20214639,99352.0,99341.0,0.01986267]
[1733496697921,0.00084239,99351.0,99341.0,0.01986267]
[1733496698168,0.00017293,99356.0,99341.0,0.04198294]
[1733496698392,0.00017293,99356.0,99341.0,0.01986267]
[1733496698865,0.201308,99350.0,99341.0,0.01986267]
[1733496699066,0.35146993,99356.0,99355.0,0.002]
[1733496699296,0.37446993,99356.0,99355.0,0.002]
[1733496699537,0.47950147,99356.0,99341.0,0.01986267]
[1733496699743,0.201315,99347.0,99341.0,0.01986267]
[1733496699965,0.023,99346.0,99341.0,0.01986267]
[1733496700180,0.10503154,99355.0,99329.0,0.02272855]
[1733496700181,0.023,99344.0,99329.0,0.02272855]
[1733496700392,0.023,99342.0,99330.0,0.01020286]
[1733496700630,0.20216839,99341.0,99340.0,0.0202302]
[1733496700839,0.201326,99341.0,99340.0,0.0202302]
[1733496701048,0.201326,99341.0,99316.0,0.201376]
[1733496701049,0.023,99342.0,99316.0,0.201376]
[1733496701269,0.201328,99340.0,99329.0,0.003]
[1733496701695,0.00017293,99356.0,99341.0,0.001]
[1733496702157,0.00101532,99356.0,99341.0,0.001]
[1733496702376,0.00017293,99356.0,99343.0,0.201321]
[1733496702831,0.00017293,99356.0,99337.0,0.01967446]
[1733496703074,0.20146993,99356.0,99337.0,0.01967446]
[1733496703291,0.00084239,99355.0,99337.0,0.03296806]
[1733496703527,0.20146993,99356.0,99337.0,0.03296806]
[1733496703739,0.00017293,99356.0,99338.0,0.00100652]
[1733496703957,0.00017293,99356.0,99339.0,0.10503154]
[1733496704171,0.00084239,99371.0,99350.0,0.1267]
[1733496704375,0.0009056,99380.0,99363.0,0.201281]
[1733496704595,0.0009056,99380.0,99367.0,0.201272]
[1733496704815,0.0009056,99380.0,99372.0,0.201263]
[1733496705028,0.0009056,99380.0,99378.0,0.0201842]
[1733496705241,0.0009056,99380.0,99379.0,0.02214472]
[1733496705463,0.0009056,99380.0,99378.0,0.0201842]
[1733496705942,0.0009056,99380.0,99363.0,0.20128]
[1733496706154,0.201249,99379.0,99354.0,0.201298]
[1733496706367,0.00084239,99378.0,99370.0,0.01967079]
[1733496707251,0.201253,99377.0,99370.0,0.01967079]
[1733496707463,0.023,99379.0,99367.0,0.003]
[1733496707464,0.173,99375.0,99367.0,0.003]
[1733496707674,0.02384239,99374.0,99367.0,0.003]
[1733496707889,0.201278,99365.0,99358.0,0.02043587]
[1733496708125,0.201271,99369.0,99358.0,0.02043587]
[1733496708344,0.201251,99379.0,99358.0,0.02043587]
[1733496708345,0.0008654,99390.0,99359.0,0.0010064]
[1733496708570,0.1508654,99390.0,99360.0,0.02227433]
[1733496708791,0.00084239,99389.0,99367.0,0.001]
[1733496709001,0.00084239,99389.0,99366.0,0.201274]
[1733496709002,0.00084239,99389.0,99368.0,0.201272]
[1733496709213,0.201234,99387.0,99366.0,0.201274]
[1733496709456,0.001,99369.0,99367.0,0.0402556]
[1733496709695,0.001,99369.0,99359.0,0.10503154]
[1733496709696,0.001,99369.0,99360.0,0.201288]
[1733496709904,0.001,99369.0,99366.0,0.201275]
[1733496710112,0.001,99369.0,99367.0,0.00100622]
[1733496710319,0.001,99369.0,99366.0,0.201275]
[1733496710533,0.201236,99386.0,99366.0,0.201275]
[1733496710786,0.201236,99386.0,99370.0,0.00173]
[1733496711007,0.001,99380.0,99370.0,0.00173]
[1733496711215,0.15,99393.0,99371.0,0.201265]
[1733496711428,0.023,99392.0,99371.0,0.201265]
[1733496711877,0.023,99392.0,99370.0,0.00173]
[1733496712091,0.15,99391.0,99371.0,0.22569076]
[1733496712312,0.15,99391.0,99377.0,0.0202848]
[1733496712527,0.023,99394.0,99377.0,0.0202848]
[1733496712745,0.023,99398.0,99379.0,0.201249]
[1733496712975,0.201248,99400.0,99380.0,0.00100612]
[1733496713182,0.001,99392.0,99379.0,0.201249]
[1733496713391,0.001,99392.0,99378.0,0.10599656]
[1733496713615,0.001,99392.0,99379.0,0.03275374]
[1733496714257,0.00117286,99392.0,99379.0,0.23400274]
[1733496714481,0.00117286,99392.0,99379.0,0.23500274]
[1733496714701,0.00117286,99392.0,99379.0,0.23400274]
[1733496714939,0.00117286,99392.0,99379.0,0.03275374]
[1733496715155,0.00017286,99392.0,99379.0,0.03275374]
[1733496715376,0.00017286,99392.0,99380.0,0.0345619]
[1733496715377,0.20139786,99392.0,99380.0,0.0345619]
[1733496715600,0.00017286,99392.0,99380.0,0.0345619]
[1733496716267,0.20239686,99392.0,99380.0,0.0345619]
[1733496716492,0.00117286,99392.0,99380.0,0.0345619]
[1733496716711,0.00117286,99392.0,99378.0,0.0814]
[1733496716926,0.00117286,99392.0,99378.0,0.28265]
[1733496717477,0.00117286,99392.0,99378.0,0.0814]
[1733496717679,0.00117286,99392.0,99379.0,0.15323766]
[1733496717890,0.00117286,99392.0,99384.0,0.201237]
[1733496718100,0.00117286,99392.0,99385.0,0.04358747]
[1733496718101,0.00017286,99392.0,99385.0,0.04358747]
[1733496718311,0.00017286,99392.0,99380.0,0.201247]
[1733496718601,0.00017286,99392.0,99381.0,0.20225104]
[1733496718862,0.00017286,99392.0,99379.0,0.15223154]
[1733496718863,0.00117286,99392.0,99379.0,0.0472]
[1733496719306,0.201246,99381.0,99377.0,0.0202848]
[1733496719528,0.201239,99385.0,99380.0,0.001]
[1733496719966,0.20125,99379.0,99377.0,0.0202848]
[1733496720187,0.10503154,99378.0,99345.0,0.0472]
[1733496720393,0.224265,99371.0,99360.0,0.02025113]
[1733496720825,0.173,99370.0,99360.0,0.02025113]
[1733496721092,0.201289,99360.0,99345.0,0.0472]
[1733496721344,0.023,99365.0,99339.0,0.0758]
[1733496721529,0.201301,99354.0,99340.0,0.00768065]
[1733496721748,0.201301,99354.0,99339.0,0.0758]
[1733496721963,0.201294,99357.0,99339.0,0.0758]
[1733496722176,0.224283,99363.0,99340.0,0.00273692]
[1733496722397,0.15,99376.0,99353.0,0.02035175]
[1733496722632,0.0008652,99380.0,99354.0,0.20230637]
[1733496722633,0.023,99374.0,99354.0,0.20230637]
[1733496722860,0.023,99372.0,99354.0,0.02226581]
[1733496723078,0.201268,99370.0,99353.0,0.02035175]
[1733496723935,0.201276,99366.0,99353.0,0.02035175]
[1733496724138,0.20127,99369.0,99353.0,0.02035175]
[1733496724835,0.173,99372.0,99353.0,0.02035175]
[1733496725043,0.201221,99393.0,99367.0,0.0821]
[1733496725260,0.201238,99385.0,99367.0,0.0821]
[1733496725472,0.002,99374.0,99368.0,0.0129]
[1733496725895,0.002,99374.0,99367.0,0.0821]
[1733496725896,0.201249,99379.0,99367.0,0.0821]
[1733496726151,0.201251,99378.0,99367.0,0.0821]
[1733496726358,0.0038652,99380.0,99367.0,0.0821]
[1733496726573,0.173,99376.0,99353.0,0.0821]
[1733496726791,0.17912512,99380.0,99357.0,0.02056192]
[1733496726792,0.173,99374.0,99357.0,0.02056192]
[1733496727009,0.0038652,99380.0,99344.0,0.20132]
[1733496727232,0.0038652,99380.0,99356.0,0.02040089]
[1733496727441,0.0038652,99380.0,99362.0,0.201283]
[1733496727655,0.0008652,99380.0,99362.0,0.03277217]
[1733496727872,0.0008652,99380.0,99368.0,0.001]
[1733496728520,0.0008652,99380.0,99356.0,0.02040089]
[1733496728521,0.023,99378.0,99356.0,0.02040089]
[1733496728991,0.402533,99371.0,99356.0,0.02040089]
[1733496729207,0.023,99378.0,99356.0,0.02040089]
[1733496729208,0.201293,99358.0,99356.0,0.02040089]
[1733496729420,0.023,99368.0,99343.0,0.00100649]
[1733496729648,0.15,99369.0,99343.0,0.00100649]
[1733496729649,0.02286,99361.0,99354.0,0.02056595]
[1733496729872,0.201287,99361.0,99354.0,0.02056595]
[1733496730332,0.201278,99365.0,99354.0,0.02056595]
[1733496731228,0.201288,99361.0,99354.0,0.02056595]
[1733496731443,0.201278,99365.0,99354.0,0.02056595]
[1733496731665,0.15,99373.0,99354.0,0.02056595]
[1733496731896,0.0008652,99380.0,99355.0,0.02319385]
[1733496731897,0.201251,99378.0,99355.0,0.02319385]
[1733496732102,0.0008652,99380.0,99355.0,0.02218749]
[1733496732103,0.201262,99373.0,99355.0,0.02218749]
[1733496732315,0.10503154,99377.0,99355.0,0.02218749]
[1733496732525,0.201255,99376.0,99355.0,0.02218749]
[1733496732747,0.201275,99367.0,99354.0,0.02656595]
[1733496734280,0.201275,99367.0,99354.0,0.02056595]
[1733496734495,0.002,99373.0,99354.0,0.02056595]
[1733496734710,0.201295,99357.0,99354.0,0.02056595]
[1733496734920,0.201288,99361.0,99354.0,0.02056595]
[1733496735129,0.201279,99365.0,99354.0,0.02056595]
[1733496735338,0.402589,99357.0,99354.0,0.02056595]
[1733496735551,0.201265,99371.0,99342.0,0.0821]
[1733496735552,0.023,99363.0,99342.0,0.0821]
[1733496735767,0.201315,99347.0,99342.0,0.0821]
[1733496735976,0.201309,99350.0,99342.0,0.0821]
[1733496736461,0.201317,99346.0,99342.0,0.0821]
[1733496736648,0.201309,99350.0,99342.0,0.0821]
[1733496737117,0.201302,99354.0,99343.0,0.00941838]
[1733496737349,0.201308,99350.0,99342.0,0.0821]
[1733496737582,0.1349721,99392.0,99342.0,0.0821]
[1733496737583,0.023,99372.0,99345.0,0.02007968]
[1733496737805,0.023,99366.0,99346.0,0.00100644]
[1733496738022,0.0008652,99380.0,99347.0,0.00100637]
[1733496738249,0.10503154,99372.0,99342.0,0.0821]
[1733496738474,0.15,99371.0,99343.0,0.01441838]
[1733496738688,0.201283,99363.0,99343.0,0.01441838]
[1733496739141,0.201283,99363.0,99343.0,0.00941838]
[1733496739614,0.402566,99363.0,99343.0,0.00941838]
[1733496739822,0.201257,99376.0,99358.0,0.02041794]
[1733496740055,0.0008652,99380.0,99358.0,0.02041794]
[1733496740279,0.002,99373.0,99358.0,0.02041794]
[1733496740721,0.0008652,99380.0,99358.0,0.02041794]
[1733496741133,0.002,99373.0,99358.0,0.02041794]
[1733496741830,0.20126,99374.0,99358.0,0.02041794]
[1733496742469,0.201249,99379.0,99358.0,0.02041794]
[1733496742683,0.023,99378.0,99358.0,0.04259003]
[1733496742903,0.12803154,99378.0,99358.0,0.02041794]
[1733496743172,0.0008652,99380.0,99370.0,0.201267]
[1733496743173,0.001,99373.0,99370.0,0.201267]
[1733496743375,0.001,99373.0,99372.0,0.201263]
[1733496743595,0.0008652,99380.0,99372.0,0.05085677]
[1733496743812,0.002,99378.0,99373.0,0.20226713]
[1733496744022,0.002,99378.0,99375.0,0.201257]
[1733496744243,0.0008652,99380.0,99372.0,0.07133217]
[1733496744452,0.0008652,99380.0,99372.0,0.0723383]
[1733496744661,0.001,99373.0,99372.0,0.0204754]
[1733496746002,0.0008652,99380.0,99372.0,0.0204754]
[1733496746632,0.0008652,99380.0,99372.0,0.0214754]
[1733496747069,0.0008652,99380.0,99372.0,0.0204754]
[1733496747283,0.0008652,99380.0,99372.0,0.0274754]
[1733496747284,0.201249,99379.0,99372.0,0.0274754]
[1733496747509,0.023,99374.0,99372.0,0.0214754]
[1733496747760,0.201261,99373.0,99359.0,0.1257]
[1733496747982,0.023,99378.0,99372.0,0.003]
[1733496748210,0.201257,99375.0,99360.0,0.01257]
[1733496748450,0.201257,99375.0,99372.0,0.001]
[1733496748711,0.023,99374.0,99372.0,0.001]
[1733496748947,0.201261,99373.0,99372.0,0.001]
[1733496749639,0.201261,99373.0,99369.0,0.01974137]
[1733496750336,0.025,99374.0,99369.0,0.01974137]
[1733496750337,0.002,99374.0,99369.0,0.01974137]
[1733496750542,0.0008652,99380.0,99370.0,0.00100619]
[1733496750757,0.001,99373.0,99371.0,0.10603772]
[1733496750980,0.001,99373.0,99372.0,0.01257791]
[1733496751194,0.001,99373.0,99372.0,0.01358405]
[1733496751406,0.001,99373.0,99371.0,0.10503154]
[1733496751879,0.001,99373.0,99371.0,0.11303154]
[1733496752108,0.0008652,99380.0,99371.0,0.11303154]
[1733496752332,0.0008652,99380.0,99371.0,0.10503154]
[1733496752544,0.0008652,99380.0,99372.0,0.00100614]
[1733496752753,0.0008652,99380.0,99373.0,0.05391037]
[1733496752960,0.0008652,99380.0,99372.0,0.00900614]
[1733496752961,0.0008652,99380.0,99372.0,0.008]
[1733496753418,0.0008652,99380.0,99377.0,0.201252]
[1733496753844,0.0008652,99380.0,99379.0,0.201249]
[1733496754067,0.0008652,99380.0,99379.0,0.30628054]
[1733496754275,4e-05,99400.0,99386.0,0.05]
[1733496754499,4e-05,99400.0,99387.0,0.10503154]
[1733496754712,0.0002129,99400.0,99387.0,0.10503154]
[1733496755133,0.0002129,99400.0,99379.0,0.20216925]
[1733496755345,0.0002129,99400.0,99380.0,0.30627854]
[1733496755559,0.0002129,99400.0,99381.0,0.201245]
[1733496755996,0.0002129,99400.0,99379.0,0.1228]
[1733496755997,0.201209,99399.0,99379.0,0.1228]
[1733496756213,0.0002129,99400.0,99379.0,0.1228]
[1733496756429,0.0002129,99400.0,99380.0,0.032605]
[1733496756923,0.0002129,99400.0,99380.0,0.03361106]
[1733496756924,0.0012129,99400.0,99380.0,0.03361106]
[1733496757136,0.0012129,99400.0,99381.0,0.30627654]
[1733496757350,0.0012129,99400.0,99396.0,0.0200288]
[1733496758415,0.0002129,99400.0,99396.0,0.0200288]
[1733496758840,0.0002129,99400.0,99396.0,0.0210288]
[1733496759044,0.0002129,99400.0,99396.0,0.0200288]
[1733496759721,0.402418,99399.0,99396.0,0.0200288]
[1733496759965,0.173,99396.0,99364.0,0.0803]
[1733496760165,0.173,99396.0,99370.0,0.11667375]
[1733496760380,0.201226,99391.0,99376.0,0.02011512]
[1733496760596,0.023,99396.0,99380.0,0.11667375]
[1733496760820,0.201217,99395.0,99380.0,0.11667375]
[1733496761043,0.0002129,99400.0,99381.0,0.01367889]
[1733496761044,0.201222,99393.0,99381.0,0.01367889]
[1733496761265,0.201222,99393.0,99376.0,0.02011512]
[1733496761488,0.201225,99392.0,99376.0,0.02011512]
[1733496761712,0.201225,99392.0,99376.0,0.02311512]
[1733496761949,0.201234,99387.0,99376.0,0.02011512]
[1733496762161,0.201209,99399.0,99376.0,0.02011512]
[1733496762162,0.402501,99379.0,99376.0,0.02011512]
[1733496762585,0.201265,99372.0,99363.0,0.0467]
[1733496762801,0.10503154,99387.0,99364.0,0.0768]
[1733496762802,0.023,99386.0,99364.0,0.0768]
[1733496763024,0.12803154,99386.0,99376.0,0.001]
[1733496763735,0.12803154,99386.0,99371.0,0.02059008]
[1733496764411,0.201253,99377.0,99371.0,0.02059008]
[1733496764619,0.201253,99377.0,99376.0,0.003]
[1733496765045,0.201262,99373.0,99371.0,0.02059008]
[1733496765691,0.201253,99377.0,99371.0,0.02059008]
[1733496765908,0.201253,99377.0,99376.0,0.001]
[1733496766145,0.201253,99377.0,99364.0,0.0768]
[1733496766362,0.201253,99377.0,99371.0,0.001]
[1733496766574,0.201253,99377.0,99371.0,0.004]
[1733496766789,0.201262,99373.0,99371.0,0.003]
[1733496767777,0.201262,99373.0,99371.0,0.503]
[1733496768215,0.201262,99373.0,99371.0,0.5]
[1733496768436,0.0002129,99400.0,99371.0,0.55995938]
[1733496768633,0.0002129,99400.0,99380.0,0.11668495]
[1733496768847,0.201212,99398.0,99380.0,0.11769101]
[1733496769056,0.20122,99394.0,99373.0,0.201261]
[1733496769266,0.201212,99398.0,99375.0,0.201257]
[1733496769480,0.201219,99394.0,99376.0,0.10503154]
[1733496769913,0.201229,99389.0,99372.0,0.048]
[1733496770140,0.201242,99383.0,99372.0,0.048]
[1733496770365,0.201233,99387.0,99372.0,0.10879594]
[1733496770597,0.023,99395.0,99371.0,0.5]
[1733496770839,0.20126,99374.0,99373.0,0.02020649]
[1733496771061,0.201259,99375.0,99373.0,0.02020649]
[1733496771272,0.201259,99375.0,99371.0,0.5]
[1733496771487,0.201246,99381.0,99371.0,0.5]
[1733496771709,0.201255,99377.0,99373.0,0.001]
[1733496771927,0.15,99388.0,99374.0,0.01987233]
[1733496772204,0.201194,99407.0,99386.0,0.201233]
[1733496772424,0.0008658,99410.0,99387.0,0.20223899]
[1733496773250,0.201193,99407.0,99386.0,0.10503154]
[1733496773687,0.201193,99407.0,99387.0,0.201233]
[1733496774112,0.201193,99407.0,99386.0,0.10503154]
[1733496774320,0.0008658,99410.0,99386.0,0.10503154]
[1733496774321,0.0008658,99410.0,99387.0,0.20223898]
[1733496774534,0.201192,99408.0,99387.0,0.20223898]
[1733496774758,0.201192,99408.0,99387.0,0.00300598]
[1733496774985,0.0008658,99410.0,99388.0,0.30626254]
[1733496775195,0.00714973,99421.0,99389.0,0.02133642]
[1733496775404,0.00057609,99416.0,99400.0,0.11667697]
[1733496775614,0.00057609,99416.0,99401.0,0.08070591]
[1733496775821,0.00057609,99416.0,99401.0,0.0797]
[1733496776052,0.00057609,99416.0,99402.0,0.04710586]
[1733496776503,0.00057609,99416.0,99393.0,0.08865944]
[1733496776759,0.00057609,99416.0,99390.0,0.18711372]
[1733496776760,0.00057609,99416.0,99394.0,0.00100596]
[1733496776975,0.00057609,99416.0,99393.0,0.00100596]
[1733496777216,0.201192,99408.0,99387.0,0.20223796]
[1733496777426,0.201192,99408.0,99403.0,0.0205459]
[1733496777648,0.201191,99408.0,99403.0,0.0205459]
[1733496777867,0.402382,99408.0,99403.0,0.0205459]
[1733496778089,0.201206,99401.0,99384.0,0.0792]
[1733496778313,0.224203,99402.0,99401.0,0.001]
[1733496778526,0.15,99407.0,99401.0,0.001]
[1733496778760,0.201199,99405.0,99403.0,0.002]
[1733496779002,0.201213,99398.0,99385.0,0.06563089]
[1733496779877,0.201213,99398.0,99386.0,0.05514123]
[1733496780546,0.201207,99401.0,99394.0,0.0201916]
[1733496780776,0.16003112,99407.0,99394.0,0.0201916]
[1733496781005,0.402422,99398.0,99394.0,0.0201916]
[1733496781226,0.01003112,99407.0,99394.0,0.0201916]
[1733496781446,0.0008652,99410.0,99395.0,0.001006]
[1733496781674,0.0008652,99410.0,99396.0,0.02224216]
[1733496781903,0.201189,99409.0,99396.0,0.02324809]
[1733496782165,0.002,99407.0,99396.0,0.0232481]
[1733496782435,0.002,99407.0,99394.0,0.0201916]
[1733496782675,0.201189,99409.0,99395.0,0.10503154]
[1733496783168,0.0028652,99410.0,99395.0,0.10503154]
[1733496783169,0.201191,99408.0,99395.0,0.10503154]
[1733496783418,0.0028652,99410.0,99396.0,0.05377273]
[1733496783419,0.003,99409.0,99396.0,0.05377273]
[1733496783633,0.003,99409.0,99398.0,0.20533641]
[1733496783843,0.003,99409.0,99405.0,0.201196]
[1733496784082,0.003,99409.0,99399.0,0.39489898]
[1733496784297,0.003,99409.0,99405.0,0.1261]
[1733496784298,0.001,99407.0,99405.0,0.1261]
[1733496784505,0.001,99407.0,99406.0,0.57229476]
[1733496784713,0.001,99407.0,99406.0,0.57128902]
[1733496784930,0.002,99409.0,99406.0,0.89810109]
[1733496785161,0.0008652,99410.0,99408.0,0.33398766]
[1733496785393,0.0008652,99410.0,99409.0,0.1945368]
[1733496785625,0.00057609,99416.0,99415.0,0.201176]
[1733496785842,0.00978531,99441.0,99423.0,0.20116]
[1733496786059,0.00103772,99430.0,99424.0,0.00100562]
[1733496786301,0.00103772,99430.0,99421.0,0.00100562]
[1733496786521,0.15,99457.0,99421.0,0.00100562]
[1733496786522,0.0008658,99460.0,99429.0,0.01983667]
[1733496786742,0.0008658,99460.0,99442.0,0.11667697]
[1733496786971,0.0008658,99460.0,99444.0,0.201118]
[1733496787188,0.0008658,99460.0,99446.0,0.201114]
[1733496787413,0.0008658,99460.0,99448.0,0.20111]
[1733496787675,0.0008658,99460.0,99450.0,0.11667697]
[1733496787947,0.0018654,99480.0,99457.0,0.201089]
[1733496788150,0.0018654,99480.0,99460.0,0.11667697]
[1733496788151,0.2029124,99480.0,99460.0,0.11667697]
[1733496788359,0.0018654,99480.0,99469.0,0.0755]
[1733496788567,0.0018654,99480.0,99469.0,0.18153662]
[1733496788778,0.0018654,99480.0,99469.0,0.22085395]
[1733496789032,0.201039,99483.0,99469.0,0.11582241]
[1733496789252,0.00017272,99470.0,99469.0,0.0755]
[1733496789480,0.00017272,99470.0,99469.0,0.18053154]
[1733496789709,0.00017272,99470.0,99469.0,0.24785832]
[1733496790428,0.01000178,99495.0,99469.0,0.24785832]
[1733496790646,0.201034,99486.0,99470.0,0.10503154]
[1733496790863,0.201044,99481.0,99469.0,0.08167272]
[1733496791075,0.201044,99481.0,99469.0,0.18270426]
[1733496791500,0.201044,99481.0,99469.0,0.18070426]
[1733496791734,0.351025,99490.0,99470.0,0.30609654]